fUSD/lending_fUSD_20240115
["ID","MTS","AMOUNT","RATE_DAILY","PERIOD"]
[311708588,1705347040003,-150.0,0.00028876,2]
[311708590,1705347040012,-176.2,0.0002888,2]
[311708592,1705347040021,-256.71,0.0002888,7]
[311708594,1705347040031,-231.67475292,0.00028969,2]
[311708596,1705347040040,-380.25,0.00028989,2]
[311708598,1705347040049,-256.71,0.00029017,7]
[311708600,1705347040059,-1340.27192904,0.00029072,2]
[311708602,1705347040068,-511.49748565,0.00029072,2]
[311708604,1705347040078,-191.44780391,0.00029072,2]
[311708606,1705347040087,-380.25,0.00029133,2]
[311708608,1705347040096,-263.41494934,0.00029154,7]
[311708610,1705347040106,-171.98990679,0.000292,2]
[311708613,1705347040115,-380.25,0.00029278,2]
[311708615,1705347040125,-231.67475292,0.00029373,2]
[311708616,1705347040134,-1138.26799192,0.00029378,2]
[311708619,1705347040144,-380.25,0.00029422,2]
[311708621,1705347040154,-176.2,0.00029428,2]
[311708623,1705347040163,-2445.47809706,0.00029451,2]
[311708625,1705347040172,-23774.15990053,0.00029499,2]
[311708627,1705347040181,-188.31609233,0.000295,3]
[311708629,1705347040193,-200.0,0.00029521,3]
[311708631,1705347040203,-380.25,0.00029566,2]
[311708633,1705347040212,-1138.26799192,0.00029687,2]
[311708635,1705347040223,-150.0,0.0002971,2]
[311708637,1705347040232,-7999.99,0.0002971,6]
[311708639,1705347040241,-380.25,0.0002971,2]
[311708641,1705347040251,-200.0,0.00029731,2]
[311708643,1705347040260,-308.0,0.00029731,2]
[311708645,1705347040270,-150.0,0.00029735,2]
[311708647,1705347040279,-150.0,0.00029737,2]
[311708649,1705347040288,-200.0,0.0002974,2]
[311708651,1705347040297,-150.0,0.00029744,2]
[311708653,1705347040307,-150.0,0.00029746,2]
[311708655,1705347040316,-150.0,0.0002975,2]
[311708657,1705347040325,-150.0,0.00029751,2]
[311708659,1705347040335,-150.0,0.00029752,2]
[311708661,1705347040344,-150.0,0.00029754,2]
[311708663,1705347040354,-1468.52,0.0002976,2]
[311708665,1705347040362,-150.0,0.00029763,2]
[311708667,1705347040372,-150.0,0.00029766,2]
[311708669,1705347040381,-150.0,0.00029772,2]
[311708671,1705347040390,-593.0,0.00029773,5]
[311708673,1705347040400,-166.12750892,0.00029774,2]
[311708675,1705347040409,-306.60094349,0.00029775,2]
[311708677,1705347040419,-231.67475292,0.00029777,2]
[311708679,1705347040428,-150.0,0.00029805,2]
[311708681,1705347040438,-150.0,0.0002981,2]
[311708684,1705347040448,-150.0,0.00029814,2]
[311708686,1705347040457,-150.0,0.00029829,2]
[311708688,1705347040466,-150.0,0.00029831,2]
[311708690,1705347040475,-150.0,0.00029837,2]
[311708692,1705347040485,-150.0,0.00029837,2]
[311708694,1705347040494,-150.0,0.00029839,2]
[311708696,1705347040503,-380.25,0.00029855,2]
[311708697,1705347040512,-150.0,0.0002986,2]
[311708698,1705347040521,-150.0,0.00029863,2]
[311708699,1705347040530,-2500.0,0.00029875,3]
[311708701,1705347040540,-1576.5948,0.00029876,2]
[311708703,1705347040549,-3631.0469,0.00029876,2]
[311708704,1705347040559,-2000.0,0.00029877,3]
[311708705,1705347040568,-245000.0,0.00029877,2]
[311708706,1705347040578,-207.1041,0.00029877,2]
[311708708,1705347040595,-150.0,0.00029879,2]
[311708711,1705347040607,-150.0,0.00029881,2]
[311708713,1705347040618,-150.0,0.00029881,2]
[311708715,1705347040627,-150.0,0.00029883,2]
[311708717,1705347040637,-150.0,0.00029887,2]
[311708719,1705347040647,-5000.0,0.00029898,2]
[311708721,1705347040656,-150.0,0.000299,2]
[311708723,1705347040666,-150.0,0.00029907,2]
[311708725,1705347040675,-150.0,0.00029914,2]
[311708727,1705347040685,-150.0,0.00029914,2]
[311708730,1705347040695,-150.0,0.00029916,2]
[311708732,1705347040704,-150.0,0.00029926,2]
[311708734,1705347040713,-300.0,0.00029927,2]
[311708736,1705347040724,-150.0,0.00029929,2]
[311708738,1705347040733,-150.0,0.00029943,2]
[311708740,1705347040741,-300.0,0.00029945,2]
[311708742,1705347040750,-800.0,0.00029945,2]
[311708744,1705347040759,-150.0,0.00029948,2]
[311708746,1705347040769,-247.44372753,0.00029948,2]
[311708748,1705347040778,-326.9656851,0.00029949,2]
[311708750,1705347040788,-150.0,0.00029954,2]
[311708752,1705347040797,-300.0,0.00029956,2]
[311708754,1705347040807,-150.0,0.00029968,2]
[311708756,1705347040816,-403.37,0.00029973,2]
[311708758,1705347040826,-253.03478513,0.00029975,2]
[311708760,1705347040835,-2018.10308734,0.00029975,2]
[311708762,1705347040844,-663.79809551,0.00029975,2]
[311708764,1705347040854,-155.25826275,0.00029975,2]
[311708766,1705347040863,-1272.40788958,0.00029975,2]
[311708768,1705347040876,-227.62042187,0.00029975,2]
[311708770,1705347040886,-223.63377788,0.00029975,2]
[311708772,1705347040895,-1043.80845818,0.00029975,2]
[311708774,1705347040907,-155.48692746,0.00029975,2]
[311708776,1705347040917,-155.50156782,0.00029975,2]
[311708779,1705347040927,-155.14894867,0.00029975,2]
[311708781,1705347040936,-244.02773352,0.00029975,2]
[311708783,1705347040946,-570.34423517,0.00029975,2]
[311708785,1705347040956,-167.8946825,0.00029975,2]
[311708787,1705347040967,-650.93242009,0.00029975,2]
[311708789,1705347040976,-383.68557165,0.00029975,2]
[311708791,1705347040986,-273.55023891,0.00029975,2]
[311708793,1705347040996,-1571.93174963,0.00029975,2]
[311708795,1705347041006,-183.31693013,0.00029975,2]
[311708797,1705347041016,-3141.15835728,0.00029975,2]
[311708799,1705347041026,-370.09331606,0.00029975,2]
[311708801,1705347041035,-182.16712069,0.00029975,2]
[311708803,1705347041045,-155.0,0.00029975,2]
[311708805,1705347041055,-351.48000001,0.00029975,2]
[311708807,1705347041065,-236.76585008,0.00029975,2]
[311708809,1705347041075,-1041.93851445,0.00029975,2]
[311708811,1705347041084,-155.0,0.00029975,2]
[311708813,1705347041095,-309.999998,0.00029975,2]
[311708815,1705347041104,-162.54625844,0.00029975,2]
[311708818,1705347041114,-155.51550435,0.00029975,2]
[311708819,1705347041123,-155.30188589,0.00029975,2]
[311708822,1705347041133,-578.97126269,0.00029975,2]
[311708824,1705347041142,-816.6031777,0.00029975,2]
[311708826,1705347041151,-1380.62051341,0.00029975,2]
[311708828,1705347041162,-188.82590285,0.00029975,2]
[311708830,1705347041171,-156.54303482,0.00029975,2]
[311708832,1705347041181,-158.12370293,0.00029975,2]
[311708834,1705347041190,-177.10393837,0.00029975,2]
[311708836,1705347041199,-253.34478463,0.00029975,2]
[311708838,1705347041209,-765.80999369,0.00029975,2]
[311708840,1705347041220,-172.14508464,0.00029976,2]
[311708842,1705347041230,-217.43053943,0.00029976,2]
[311708844,1705347041240,-160.72539687,0.00029976,2]
[311708846,1705347041249,-184.17252999,0.00029976,2]
[311708848,1705347041259,-265.86409049,0.00029976,2]
[311708850,1705347041268,-44960.91282629,0.00029976,2]
[311708852,1705347041277,-351.98,0.00029976,2]
[311708854,1705347041287,-300.0,0.00029977,2]
[311708857,1705347041297,-3930.60839298,0.00029978,2]
[311708859,1705347041306,-1267.18814382,0.00029979,2]
[311708861,1705347041316,-150.0,0.00029984,2]
[311708863,1705347041326,-1500.0,0.00029986,2]
[311708865,1705347041336,-150.0,0.00029987,2]
[311708867,1705347041345,-150.0,0.00029991,2]
[311708869,1705347041355,-150.0,0.00029995,2]
[311708871,1705347041364,-228.34295741,0.00029996,2]
[311708873,1705347041374,-150.0,0.00029996,2]
[311708875,1705347041384,-600.0,0.00029997,2]
[311708877,1705347041393,-4698.35903998,0.00029997,2]
[311708879,1705347041403,-33726.46092824,0.00029997,2]
[311708881,1705347041412,-728.71104494,0.00029997,2]
[311708883,1705347041421,-486.39012387,0.00029998,2]
[311708885,1705347041430,-28712.36427815,0.00029998,2]
[311708887,1705347041439,-294.80939245,0.00029998,2]
[311708889,1705347041449,-336.7179586,0.00029998,2]
[311708891,1705347041458,-263.78766681,0.00029998,2]
[311708893,1705347041467,-338.37923961,0.00029998,2]
[311708895,1705347041477,-552.01600729,0.00029998,2]
[311708897,1705347041486,-158.48029498,0.00029998,2]
[311708899,1705347041495,-528.34979913,0.00029998,2]
[311708901,1705347041504,-150.0,0.00029998,2]
[311708903,1705347041513,-380.25,0.00029999,2]
[311708905,1705347041522,-150.01,0.00029999,2]
[311708907,1705347041532,-770.93442553,0.00029999,2]
[311708910,1705347041542,-100000.0,0.0003,2]
[311708912,1705347041552,-25214.81413584,0.0003,4]
[311708915,1705347041561,-444.62287076,0.0003,4]
[311708918,1705347041571,-198.43035225,0.0003,4]
[311708920,1705347041581,-18994.0891544,0.0003,4]
[311708922,1705347041590,-2553.39874844,0.0003,4]
[311708924,1705347041600,-155.0,0.0003,4]
[311708926,1705347041610,-812.78051941,0.0003,4]
[311708928,1705347041619,-172.56564357,0.0003,4]
[311708930,1705347041630,-461.6883313,0.0003,4]
[311708932,1705347041640,-155.0,0.0003,4]
[311708934,1705347041650,-206517.21110229,0.0003,2]
[311708936,1705347041660,-695.05752287,0.0003,4]
[311708938,1705347041670,-155.0,0.0003,4]
[311708940,1705347041680,-308636.97302582,0.0003,4]
[311708942,1705347041690,-155.0,0.0003,4]
[311708944,1705347041700,-200.0,0.0003,2]
[311708946,1705347041711,-2000.0,0.0003,2]
[311708948,1705347041722,-200.0,0.0003,2]
[311708950,1705347041735,-152.02,0.0003,2]
[311708953,1705347041746,-152.02,0.0003,2]
[311708955,1705347041757,-152.02,0.0003,2]
[311708957,1705347041767,-152.02,0.0003,2]
[311708959,1705347041777,-152.02,0.0003,2]
[311708961,1705347041788,-152.02,0.0003,2]
[311708963,1705347041797,-1660.86805001,0.0003,2]
[311708965,1705347041815,-14750.77040199,0.0003,2]
[311708967,1705347041826,-157.77,0.0003,2]
[311708970,1705347041837,-3000.0,0.0003,2]
[311708972,1705347041848,-1525.225971,0.0003,2]
[311708974,1705347041859,-247.689561,0.0003,2]
[311708976,1705347041868,-4000.0,0.0003,2]
[311708978,1705347041880,-5288.7270291,0.00030013,2]
[311708980,1705347041890,-63787.2251689,0.00030013,2]
[311708982,1705347041900,-8576.0711773,0.00030013,2]
[311708984,1705347041909,-10439.6972189,0.00030013,2]
[311708986,1705347041919,-4885.46449252,0.00030013,2]
[311708988,1705347041931,-22036.55969178,0.00030013,2]
[311708990,1705347041940,-158.03,0.00030034,2]
[311708992,1705347041951,-513.12,0.00030037,2]
[311708994,1705347041960,-1309.60508525,0.000301,2]
[311708996,1705347041971,-200.0,0.00030132,2]
[311708998,1705347041981,-153.84,0.00030137,2]
[311709001,1705347041991,-200.0,0.00030137,2]
[311709003,1705347042000,-380.25,0.00030143,2]
[311709005,1705347042010,-158.03,0.00030179,2]
[311709007,1705347042020,-2445.47809706,0.0003021,2]
[311709009,1705347042029,-153.12319757,0.00030257,7]
[311709035,1705347042300,-597.37,0.00030268,2]
[311709036,1705347042317,-158.03,0.00030324,2]
[311709037,1705347042328,-1138.26799192,0.00030334,2]
[311709039,1705347042339,-1000.0,0.00030349,2]
[311709041,1705347042350,-205.0,0.00030367,11]
[311709043,1705347042360,-152.06853973,0.00030402,2]
[311709045,1705347042371,-150.10483007,0.00030402,2]
[311709047,1705347042381,-1000.0,0.00030493,7]
[311709049,1705347042392,-200.0,0.00030523,2]
[311709051,1705347042402,-153.12319757,0.00030607,7]
[311709053,1705347042412,-982.64,0.00030629,2]
[311709055,1705347042423,-1468.52,0.00030739,2]
[311709058,1705347042434,-153.12319757,0.00030751,7]
[311709060,1705347042443,-10000.0,0.00030775,2]
[311709061,1705347042454,-3000.0,0.000308,2]
[311709064,1705347042464,-300.0,0.00030905,2]
[311709065,1705347042475,-150.0,0.00030905,2]
[311709068,1705347042486,-150.0,0.00030905,2]
[311709070,1705347042496,-165.48249809,0.00030952,7]
[311709072,1705347042506,-81450.17885261,0.00031,2]
[311709075,1705347042537,-5700.0,0.00031,2]
[311709166,1705347043386,-597.4149798,0.00029999,2]
[311709168,1705347043399,-430.49758757,0.00029999,2]
[311709170,1705347043408,-230.37713212,0.00030968,2]
[311709211,1705347043783,-303.84007919,0.00030968,2]
[311709214,1705347043795,-1911.26088575,0.00030968,2]
[311709216,1705347043805,-11416.53509269,0.00031,2]
[311709220,1705347043843,-1017.80621206,0.00031,2]
[311709351,1705347045103,-1362.97685433,0.00028476,4]
[311709353,1705347045113,-415.47984264,0.00031,2]
[311709355,1705347045123,-1384.34339965,0.00031,2]
[311709358,1705347045143,-3350.65660035,0.00031,2]
[311709360,1705347045153,-4000.0,0.00031,3]
[311709362,1705347045162,-1500.0,0.00031,2]
[311709364,1705347045172,-500.0,0.00031,3]
[311709366,1705347045182,-151.0,0.00031005,120]
[311709368,1705347045191,-153.84,0.0003105,2]
[311709370,1705347045201,-200.0,0.00031296,2]
[311709372,1705347045210,-500.0,0.00031396,10]
[311709375,1705347045221,-209.96,0.00031507,2]
[311709376,1705347045232,-151.0,0.00031638,30]
[311709379,1705347045245,-162.54209167,0.00031648,7]
[311709381,1705347045254,-50000.0,0.0003165,7]
[311709383,1705347045263,-18277.6006679,0.0003165,7]
[311709385,1705347045272,-5240.74019986,0.0003165,7]
[311709387,1705347045282,-9610.68738592,0.0003165,7]
[311709389,1705347045291,-12325.08999627,0.0003165,7]
[311709391,1705347045300,-12827.05557089,0.0003165,7]
[311709393,1705347045309,-1468.52,0.00031717,2]
[311709395,1705347045319,-199.96936451,0.00031721,2]
[311709397,1705347045328,-166.1275089,0.00031823,2]
[311709399,1705347045337,-500.0,0.00031881,2]
[311709401,1705347045347,-500.0,0.00031944,10]
[311709403,1705347045356,-153.12319757,0.00031957,7]
[311709405,1705347045365,-153.84,0.00031963,2]
[311709407,1705347045374,-728.71104494,0.00031997,2]
[311709408,1705347045384,-100000.0,0.00032,2]
[311709409,1705347045393,-151.0,0.00032,7]
[311709410,1705347045402,-281.793003,0.00032,7]
[311709411,1705347045412,-151.0,0.00032,7]
[311709412,1705347045421,-151.0,0.00032,7]
[311709413,1705347045430,-151.0,0.00032,7]
[311709414,1705347045439,-3788.47777885,0.00032,4]
[311709416,1705347045448,-298.75915033,0.00032,4]
[311709418,1705347045458,-467.2970793,0.00032,10]
[311709421,1705347045469,-4638.16101066,0.00032,4]
[311709481,1705347046169,-28668.64002817,0.00032,4]
[311709505,1705347047655,-430.70624362,0.00029997,2]
[311709506,1705347047665,-1642.20626013,0.00029997,2]
[311709507,1705347047674,-770.93442553,0.00029999,2]
[311709508,1705347047684,-2445.47809706,0.00031727,3]
[311709509,1705347047693,-78594.57149007,0.00032,4]
[311709510,1705347047704,-884.86145989,0.00032,4]
[311709511,1705347047714,-788.60873009,0.0003205,2]
[311709512,1705347047727,-270.9582862,0.0003205,2]
[311709513,1705347047740,-1137.81188775,0.0003205,2]
[311709514,1705347047765,-802.62109596,0.0003205,2]
[311709515,1705347047774,-200.0,0.00032068,2]
[311709516,1705347047783,-500.0,0.0003215,2]
[311709517,1705347047793,-199.51,0.0003215,2]
[311709518,1705347047802,-205.0,0.00032219,14]
[311709519,1705347047812,-1000.0,0.00032256,7]
[311709520,1705347047822,-206.50713275,0.00032256,7]
[311709521,1705347047873,-793.49286725,0.00032256,7]
[311709522,1705347047885,-1000.0,0.00032256,7]
[311709523,1705347047894,-156.85742576,0.00032256,7]
[311709524,1705347047903,-151.0,0.00032284,7]
[311709525,1705347047914,-6000.0,0.000323,2]
[311709526,1705347047923,-513.12,0.000323,2]
[311709527,1705347047933,-1880.42,0.00032312,2]
[311709528,1705347047943,-802.54,0.00032312,2]
[311709529,1705347047952,-401.46,0.00032312,2]
[311709530,1705347047962,-940.68,0.00032312,2]
[311709531,1705347047971,-940.68,0.00032312,2]
[311709532,1705347047980,-401.46,0.00032312,2]
[311709533,1705347047990,-438.64,0.00032347,2]
[311709534,1705347047999,-152.02,0.000324,2]
[311709535,1705347048009,-152.02,0.000324,2]
[311709536,1705347048019,-152.02,0.000324,2]
[311709537,1705347048028,-152.02,0.000324,2]
[311709538,1705347048038,-152.02,0.000324,2]
[311709539,1705347048047,-152.02,0.000324,2]
[311709540,1705347048057,-152.02,0.000324,2]
[311709541,1705347048067,-152.02,0.000324,2]
[311709542,1705347048077,-152.02,0.000324,2]
[311709543,1705347048087,-152.02,0.000324,2]
[311709544,1705347048096,-152.02,0.000324,2]
[311709545,1705347048106,-152.02,0.000324,2]
[311709546,1705347048115,-157.77,0.000324,2]
[311709547,1705347048125,-157.77,0.000324,2]
[311709548,1705347048135,-276.0,0.00032486,2]
[311709549,1705347048145,-500.0,0.00032492,10]
[311709550,1705347048155,-1468.52,0.00032696,2]
[311709551,1705347048164,-808.49632989,0.000327,2]
[311709552,1705347048174,-250.0,0.00032776,2]
[311709553,1705347048183,-6843.22981213,0.00032819,2]
[311709554,1705347048193,-150.0,0.00032828,2]
[311709555,1705347048203,-150.0,0.00032828,2]
[311709556,1705347048213,-150.0,0.00032828,2]
[311709557,1705347048222,-150.0,0.00032828,2]
[311709558,1705347048232,-150.0,0.00032828,2]
[311709559,1705347048242,-283.77,0.00032828,2]
[311709560,1705347048251,-160.0,0.00032858,3]
[311709561,1705347048261,-500.0,0.00032858,3]
[311709562,1705347048270,-400.0,0.00032866,2]
[311709563,1705347048280,-215.16369107,0.00032866,7]
[311709564,1705347048289,-16000.0,0.00032867,3]
[311709565,1705347048299,-160.0,0.00032867,3]
[311709566,1705347048308,-16000.0,0.00032867,3]
[311709567,1705347048318,-500.0,0.00032867,3]
[311709568,1705347048328,-728.71104494,0.00032873,2]
[311709569,1705347048337,-155.46805855,0.00032874,4]
[311709570,1705347048347,-300.0,0.00032875,2]
[311709571,1705347048358,-300.0,0.00032875,2]
[311709572,1705347048368,-300.0,0.00032875,2]
[311709573,1705347048377,-300.0,0.00032875,2]
[311709574,1705347048387,-151.0,0.00032876,7]
[311709575,1705347048396,-151.0,0.00032876,7]
[311709576,1705347048405,-151.0,0.00032876,7]
[311709577,1705347048414,-151.0,0.00032876,7]
[311709578,1705347048423,-151.0,0.00032876,7]
[311709579,1705347048432,-151.0,0.00032876,7]
[311709580,1705347048441,-37.58992999,0.00032876,7]
[311709581,1705347048468,-113.41007001,0.00032876,7]
[311709582,1705347048477,-151.0,0.00032876,7]
[311709583,1705347048486,-4.97234396,0.00032876,7]
[311709594,1705347502671,524.81,0.00021977,2]
[311709601,1705347611602,444.03,0.00021538,2]
[311709602,1705347612025,444.03,0.00021652,2]
[311709603,1705347612271,444.03,0.00021765,2]
[311709604,1705347612699,444.03,0.00021879,2]
[311709605,1705347612910,444.03,0.00021992,2]
[311709606,1705347624344,1000.0,0.00020878,2]
[311709610,1705347642594,1000.0,0.00020878,2]
[311709611,1705347660301,1000.0,0.00020878,2]
[311709613,1705347678309,1000.0,0.00019834,2]
[311709616,1705347701235,295.34208328,0.000221,2]
[311709617,1705347702311,1000.0,0.00019834,2]
[311709626,1705347718452,1000.0,0.00019834,2]
[311709627,1705347718636,697.51118737,0.000221,2]
[311709628,1705347730984,1136.01929882,0.000221,2]
[311709629,1705347742228,1000.0,0.00018842,2]
[311709630,1705347760126,1000.0,0.00018842,2]
[311709633,1705347778112,1000.0,0.00018842,2]
[311709634,1705347802115,1000.0,0.000179,2]
[311709635,1705347811025,532.61615679,0.000221,2]
[311709636,1705347815651,180.35754309,0.00022004,2]
[311709637,1705347816124,1000.0,0.000179,2]
[311709638,1705347838126,1000.0,0.00020995,2]
[311709639,1705347838967,1115.19,0.00021978,2]
[311709646,1705347862318,1000.0,0.00020995,2]
[311709647,1705347884323,1000.0,0.00019945,2]
[311709649,1705347900327,1000.0,0.00019945,2]
[311709652,1705347905326,4701.25313551,0.00019944,2]
[311709656,1705347922931,1000.0,0.00019945,2]
[311709657,1705347944721,1000.0,0.00018948,2]
[311709658,1705347962428,1000.0,0.00018948,2]
[311709662,1705347982494,1000.0,0.00018948,2]
[311709663,1705347989860,539.93,0.00020006,2]
[311709664,1705348004513,1000.0,0.00018001,2]
[311709665,1705348022495,1000.0,0.00018001,2]
[311709666,1705348042492,1000.0,0.00018001,2]
[311709671,1705348064542,248.73,0.00021898,2]
[311709672,1705348066837,1000.0,0.00017101,2]
[311709673,1705348086493,1000.0,0.00017101,2]
[311709674,1705348101749,1000.0,0.00017101,2]
[311709687,1705348119748,1000.0,0.00016246,2]
[311709691,1705348139906,1000.0,0.00016246,2]
[311709692,1705348153743,1000.0,0.00016246,2]
[311709693,1705348168922,156.73,0.00021898,2]
[311709694,1705348172112,1000.0,0.00015434,2]
[311709695,1705348189742,1000.0,0.00015434,2]
[311709696,1705348218009,1000.0,0.00015434,2]
[311709697,1705348219021,761.05,0.00021881,2]
[311709698,1705348220134,164.68,0.000221,2]
[311709719,1705348231427,-444.03,0.00022105,2]
[311709720,1705348231437,-99.01659869,0.00022188,2]
[311709723,1705348231482,-139.93340131,0.00022188,2]
[311709724,1705348231491,-4701.25313551,0.00022218,2]
[311709725,1705348231501,-444.03,0.00022219,2]
[311709726,1705348231510,-218.34785309,0.00022268,2]
[311709727,1705348231520,-539.93,0.0002227,2]
[311709728,1705348231529,-153.92,0.00022297,2]
[311709729,1705348231539,-444.03,0.00022332,2]
[311709730,1705348231549,-150.0,0.00022384,2]
[311709731,1705348231558,-180.35754295,0.0002242,2]
[311709732,1705348231567,-444.03,0.00022445,2]
[311709733,1705348231578,-444.03,0.00022559,2]
[311709734,1705348231588,-156.73,0.00022628,2]
[311709735,1705348231598,-444.03,0.00022672,2]
[311709736,1705348231608,-444.03,0.00022785,2]
[311709737,1705348231617,-180.35754295,0.00022835,2]
[311709738,1705348231627,-153.92,0.00022896,2]
[311709739,1705348231638,-444.03,0.00022899,2]
[311709740,1705348231648,-1755.57519895,0.00022901,2]
[311709741,1705348231658,-1576.5948,0.00022903,2]
[311709742,1705348231668,-1098.50993815,0.00022903,2]
[311709743,1705348231681,-586.60333686,0.00022903,2]
[311709744,1705348231693,-70.46192393,0.00022903,2]
[311709745,1705348231703,-482.85803933,0.00022904,2]
[311709746,1705348231717,-7234.227345,0.00022904,2]
[311709747,1705348231737,-1406.82289289,0.00022904,2]
[311709748,1705348231750,-1928.46892278,0.00022904,2]
[311709749,1705348231761,-278.53786689,0.00022957,2]
[311709750,1705348231773,-836.65213311,0.00022957,2]
[311709751,1705348231784,-800.0,0.00022986,2]
[311709752,1705348231795,-403.37,0.00022986,2]
[311709753,1705348231806,-1202.14844517,0.00022999,2]
[311709754,1705348231817,-532.70124362,0.00022999,2]
[311709755,1705348231828,-2198.77657572,0.00022999,4]
[311709756,1705348231840,-391.20892469,0.00022999,2]
[311709757,1705348231850,-550.36977471,0.00022999,2]
[311709758,1705348231863,-1135.05794666,0.00022999,2]
[311709759,1705348231874,-662.88903464,0.00022999,2]
[311709760,1705348231885,-160.88,0.00023,2]
[311709761,1705348231895,-14007.41514101,0.00023,2]
[311709762,1705348231906,-3141.15835728,0.00023001,2]
[311709763,1705348231915,-1571.93174963,0.00023001,2]
[311709764,1705348231926,-23774.15990053,0.00023001,2]
[311709765,1705348231935,-156.23379136,0.00023001,2]
[311709766,1705348231945,-3001.53867376,0.00023001,2]
[311709767,1705348231954,-162.31127784,0.00023001,2]
[311709768,1705348231964,-158.12370293,0.00023002,2]
[311709769,1705348231975,-253.03478513,0.00023002,2]
[311709770,1705348231987,-155.14894867,0.00023002,2]
[311709771,1705348231996,-1272.40788958,0.00023002,2]
[311709772,1705348232006,-600.0,0.00023003,2]
[311709773,1705348232016,-228.34295741,0.00023003,2]
[311709774,1705348232026,-338.37923961,0.00023003,2]
[311709775,1705348232036,-265.86409049,0.00023003,2]
[311709776,1705348232045,-188.82590285,0.00023003,2]
[311709777,1705348232055,-1380.62051341,0.00023003,2]
[311709778,1705348232065,-336.7179586,0.00023003,2]
[311709779,1705348232076,-486.39012387,0.00023003,2]
[311709780,1705348232086,-184.17252999,0.00023003,2]
[311709781,1705348232097,-765.80999369,0.00023003,2]
[311709782,1705348232109,-217.43053943,0.00023003,2]
[311709783,1705348232118,-158.48029498,0.00023003,2]
[311709784,1705348232130,-528.34979913,0.00023003,2]
[311709785,1705348232140,-273.55023891,0.00023003,2]
[311709786,1705348232150,-570.34423517,0.00023003,2]
[311709787,1705348232159,-160.72539687,0.00023003,2]
[311709788,1705348232169,-155.48692746,0.00023003,2]
[311709789,1705348232179,-244.02773352,0.00023003,2]
[311709790,1705348232189,-182.16712069,0.00023003,2]
[311709791,1705348232199,-816.6031777,0.00023003,2]
[311709792,1705348232209,-155.51550435,0.00023003,2]
[311709793,1705348232220,-309.999998,0.00023003,2]
[311709794,1705348232229,-223.63377788,0.00023003,2]
[311709795,1705348232239,-351.48000001,0.00023003,2]
[311709796,1705348232250,-263.78766681,0.00023003,2]
[311709797,1705348232391,-155.30188589,0.00023003,2]
[311709798,1705348232401,-236.76585008,0.00023003,2]
[311709799,1705348232411,-370.09331606,0.00023003,2]
[311709800,1705348232421,-155.0,0.00023003,2]
[311709801,1705348232430,-177.10393837,0.00023003,2]
[311709802,1705348232439,-17876.5681201,0.00023003,2]
[311709803,1705348232453,-609.86344662,0.00023003,2]
[311709804,1705348232465,-784.17302211,0.00023003,2]
[311709805,1705348232477,-2405.49206027,0.00023003,2]
[311709806,1705348232593,-833.65349942,0.00023003,2]
[311709807,1705348232605,-383.23600317,0.00023003,2]
[311709808,1705348232623,-2370.62198539,0.00023003,2]
[311709809,1705348232635,-303.88,0.00023003,2]
[311709810,1705348232647,-697.91985614,0.00023003,2]
[311709811,1705348233944,1000.0,0.00014662,2]
[311709814,1705348237455,-948.984565,0.00023003,2]
[311709815,1705348237468,-437.70943335,0.00023003,2]
[311709816,1705348237620,-17308.81083472,0.00023003,2]
[311709817,1705348237629,-155.50156782,0.00023003,2]
[311709818,1705348237639,-155.0,0.00023003,2]
[311709819,1705348237648,-1267.18814382,0.00023003,2]